bitfinex/quotes_SOLUSD_20250210
["timestamp","ask_amount","ask_price","bid_price","bid_amount"]
[1739205925560,13.78831853,203.14,203.11,0.063]
[1739205925765,26.43317253,203.14,203.11,0.063]
[1739205926091,13.41184853,203.12,203.11,0.063]
[1739205926778,13.78831853,203.12,203.11,0.063]
[1739205927281,25.55866253,203.12,203.11,0.063]
[1739205927483,33.08886253,203.12,203.11,0.063]
[1739205927693,26.55866253,203.08,203.07,0.063]
[1739205930489,41.34866253,203.08,203.07,0.063]
[1739205930671,26.55866253,203.08,203.07,0.063]
[1739205930882,26.55866253,203.08,203.05,0.063]
[1739205930883,2.25098,203.06,203.05,0.063]
[1739205931067,38.95253653,203.06,203.05,0.063]
[1739205931992,43.87713653,203.06,203.05,0.063]
[1739205932377,32.23228253,203.06,203.05,0.063]
[1739205933091,27.30768253,203.06,203.05,0.063]
[1739205934787,27.55866253,203.06,203.05,0.063]
[1739205935800,26.55866253,203.06,203.05,0.063]
[1739205938019,31.48326253,203.06,203.05,0.063]
[1739205938294,43.12811653,203.06,203.05,0.063]
[1739205938705,38.20351653,203.06,203.05,0.063]
[1739205939072,26.55866253,203.06,203.05,0.063]
[1739205941201,25.55866253,203.06,203.05,0.063]
[1739205942294,13.91380853,203.06,203.05,0.063]
[1739205944791,0.03,203.08,203.05,0.063]
[1739205946996,13.69282853,203.08,203.05,0.063]
[1739205948398,0.03,203.08,203.06,11.644854]
[1739205949291,0.03,203.08,203.07,11.644854]
[1739205949899,0.03,203.08,203.07,13.215454]
[1739205962200,0.03,203.08,203.07,1.5706]
[1739205962588,0.03,203.08,203.05,126.163]
[1739205962789,0.03,203.08,203.07,20.0]
[1739205963687,13.69282853,203.08,203.05,0.063]
[1739205964091,13.69282853,203.08,203.05,20.063]
[1739205964293,0.50196,203.06,203.05,0.063]
[1739205965901,13.91380853,203.06,203.05,0.063]
[1739205966704,26.56938035,203.06,203.05,0.063]
[1739205966895,25.56938035,203.06,203.05,0.063]
[1739205968204,13.91380853,203.06,203.05,0.063]
[1739205969004,0.03,203.08,203.05,0.063]
[1739205969304,0.03,203.08,203.05,11.71857182]
[1739205969889,0.03,203.08,203.05,0.063]
[1739205971091,0.50196,203.07,203.05,0.063]
[1739205971294,13.91380853,203.06,203.05,0.063]
[1739205971912,0.03,203.08,203.05,11.71857182]
[1739205972503,0.15549,203.08,203.05,0.063]
[1739205972805,0.37647,203.07,203.05,0.063]
[1739205973007,13.78831853,203.06,203.05,0.063]
[1739205973494,25.44389035,203.06,203.05,0.063]
[1739205976611,25.56938035,203.06,203.05,0.063]
[1739205977491,114.59398035,203.06,203.05,0.063]
[1739205978312,134.27805217,203.06,203.05,0.063]
[1739205978506,65.96805217,203.06,203.05,0.063]
[1739205982084,51.17805217,203.06,203.05,0.063]
[1739205982409,39.52248035,203.06,203.05,0.063]
[1739205982883,43.40248035,203.06,203.05,0.063]
[1739205984696,55.05805217,203.06,203.05,0.063]
[1739205986211,0.12549,202.97,202.92,20.0]
[1739205986412,13.78831853,202.95,202.92,20.0]
[1739205987301,0.12549,202.94,202.92,20.0]
[1739205988010,0.12549,202.94,202.9,1.7263]
[1739205988310,13.78831853,202.92,202.9,1.7263]
[1739205988688,13.78831853,202.92,202.9,20.063]
[1739205988887,13.78831853,202.92,202.9,0.063]
[1739205989219,11.65557182,202.91,202.9,0.063]
[1739205989506,10.15557182,202.91,202.9,0.063]
[1739205989909,23.94389035,202.91,202.9,0.063]
[1739205991813,24.06938035,202.91,202.9,0.063]
[1739205993105,13.91380853,202.91,202.9,0.063]
[1739205995010,25.56938035,202.91,202.9,0.063]
[1739205996219,25.59938035,202.91,202.9,0.063]
[1739205997309,26.59938035,202.91,202.9,0.063]
[1739205999709,31.52758035,202.91,202.9,0.063]
[1739206001231,46.31758035,202.91,202.9,0.063]
[1739206001536,16.04098,202.89,202.88,0.063]
[1739206001752,41.10840035,202.89,202.88,0.063]
[1739206003530,41.35938035,202.89,202.88,0.063]
[1739206003919,46.28808035,202.89,202.88,0.063]
[1739206009654,42.10927623,202.89,202.88,0.063]
[1739206010253,29.45282853,202.88,202.87,0.063]
[1739206010449,36.92959623,202.88,202.87,0.063]
[1739206011144,37.18057623,202.88,202.87,0.063]
[1739206011739,46.31922429,202.88,202.87,0.063]
[1739206014465,46.31922429,202.88,202.8,0.063]
[1739206014466,29.45282853,202.85,202.8,0.063]
[1739206014640,124.23924429,202.85,202.8,0.063]
[1739206017150,129.16894429,202.85,202.8,0.063]
[1739206017336,140.85536005,202.85,202.8,0.063]
[1739206019756,56.96400853,202.81,202.8,0.063]
[1739206019961,56.96400853,202.81,202.79,0.063]
[1739206019962,28.70380853,202.8,202.79,0.063]
[1739206020163,40.39022429,202.8,202.79,0.063]
[1739206020365,13.91380853,202.74,202.68,1.6595]
[1739206020534,13.91380853,202.69,202.68,1.6595]
[1739206021362,13.78831853,202.68,202.66,0.063]
[1739206021662,25.60022429,202.68,202.66,0.063]
[1739206021858,26.60022429,202.68,202.66,0.063]
[1739206022363,25.60022429,202.68,202.66,0.063]
[1739206022559,13.91380853,202.68,202.66,0.063]
[1739206023449,13.78831853,202.68,202.66,0.063]
[1739206023764,11.68641576,202.75,202.67,11.74941576]
[1739206023945,12.68641576,202.76,202.69,11.68641576]
[1739206024145,13.78831853,202.75,202.69,11.68641576]
[1739206024866,25.47473429,202.75,202.68,11.68641576]
[1739206025258,0.25098,202.69,202.67,0.063]
[1739206025463,13.78831853,202.68,202.67,0.063]
[1739206026457,13.66282853,202.68,202.67,0.063]
[1739206026650,0.25098,202.68,202.67,11.74941576]
[1739206027168,0.25098,202.68,202.67,0.063]
[1739206028266,13.78831853,202.68,202.67,0.063]
[1739206029175,13.66282853,202.68,202.67,0.063]
[1739206029551,11.68641576,202.74,202.67,11.74941576]
[1739206029746,11.68641576,202.75,202.68,11.68641576]
[1739206029979,13.66282853,202.74,202.67,11.74941576]
[1739206030172,25.34924429,202.74,202.67,0.063]
[1739206030548,11.68641576,202.76,202.68,11.68641576]
[1739206030763,11.68641576,202.77,202.69,11.68641576]
[1739206030965,13.78831853,202.76,202.69,11.68641576]
[1739206032351,13.78831853,202.76,202.7,1.6595]
[1739206032870,0.37647,202.7,202.67,0.063]
[1739206033078,13.78831853,202.68,202.67,0.063]
[1739206033451,11.68641576,202.71,202.67,0.063]
[1739206033773,0.12549,202.72,202.67,0.063]
[1739206034073,13.78831853,202.72,202.7,20.0]
[1739206034276,13.78831853,202.72,202.69,7.48492627]
[1739206034462,7.48492627,202.77,202.69,7.48492627]
[1739206034664,7.51492627,202.79,202.71,7.48492627]
[1739206034878,13.91380853,202.78,202.71,7.48492627]
[1739206035483,13.91380853,202.78,202.72,1.5481]
[1739206035652,13.91380853,202.78,202.73,7.48492627]
[1739206037279,13.91380853,202.78,202.72,1.5481]
[1739206037463,21.3987348,202.78,202.72,1.5481]
[1739206037651,25.60370289,202.78,202.72,1.5481]
[1739206037853,13.78831853,202.75,202.72,1.5481]
[1739206040778,13.78831853,202.75,202.68,11.68989436]
[1739206041686,0.25098,202.69,202.67,1.6111]
[1739206041864,13.66282853,202.69,202.67,1.6111]
[1739206043887,13.78831853,202.68,202.67,1.6111]
[1739206044382,13.78831853,202.68,202.67,0.063]
[1739206045068,25.60370289,202.68,202.67,0.063]
[1739206045860,13.91380853,202.68,202.67,0.063]
[1739206046661,31.53750289,202.68,202.67,0.063]
[1739206055470,25.60370289,202.68,202.67,0.063]
[1739206057787,21.40274657,202.68,202.67,0.063]
[1739206061993,27.33654657,202.68,202.67,0.063]
[1739206062889,42.12654657,202.68,202.67,0.063]
[1739206063695,39.71758092,202.68,202.67,0.063]
[1739206066899,39.96856092,202.68,202.67,0.063]
[1739206067083,25.17856092,202.68,202.67,0.063]
[1739206068095,19.24476092,202.68,202.67,0.063]
[1739206068696,11.75582288,202.68,202.67,0.063]
[1739206069481,19.24476092,202.68,202.67,0.063]
[1739206072104,11.75582288,202.68,202.67,0.063]
[1739206072297,7.48893804,202.75,202.67,7.55193804]
[1739206072501,83.1,202.76,202.68,7.48893804]
[1739206072795,83.1,202.76,202.7,7.48893804]
[1739206073101,13.66282853,202.75,202.7,7.48893804]
[1739206074474,7.48893804,202.78,202.7,7.48893804]
[1739206074890,13.78831853,202.77,202.7,7.48893804]
[1739206076603,13.78831853,202.77,202.71,7.48893804]
[1739206077410,21.27725657,202.77,202.69,7.48893804]
[1739206077607,13.66282853,202.75,202.68,7.48893804]
[1739206077797,7.73991804,202.75,202.67,7.55193804]
[1739206079315,7.48893804,202.74,202.67,7.55193804]
[1739206079803,0.12549,202.75,202.69,7.48893804]
[1739206080000,90.58893804,202.78,202.7,7.48893804]
[1739206080295,0.25098,202.75,202.69,7.48893804]
[1739206080498,0.25098,202.75,202.68,7.48893804]
[1739206080882,0.25098,202.75,202.69,7.48893804]
[1739206081306,0.12549,202.74,202.69,7.48893804]
[1739206081504,0.12549,202.74,202.71,7.48893804]
[1739206082383,0.12549,202.75,202.71,7.48893804]
[1739206083279,0.12549,202.75,202.67,0.063]
[1739206083280,0.03,202.77,202.73,7.48893804]
[1739206083484,0.03,202.77,202.75,7.48893804]
[1739206083900,0.03,202.77,202.76,7.48893804]
[1739206085209,0.03,202.77,202.76,9.05913804]
[1739206085386,0.03,202.79,202.78,20.0]
[1739206085701,0.03,202.79,202.78,27.48893804]
[1739206086005,0.12549,202.88,202.78,27.48893804]
[1739206086212,0.12549,202.89,202.84,7.48893804]
[1739206086392,0.12549,202.89,202.77,0.73945636]
[1739206086598,0.12549,202.89,202.87,7.48893804]
[1739206086997,0.03,202.9,202.88,7.48893804]
[1739206087601,0.12549,202.89,202.87,11.67113233]
[1739206088387,0.03,202.9,202.87,11.67113233]
[1739206089614,0.03,202.9,202.89,11.67113233]
[1739206094211,13.81831853,202.9,202.89,11.67113233]
[1739206094401,13.44184853,202.9,202.87,11.67113233]
[1739206097106,13.44184853,202.9,202.88,11.67113233]
[1739206098022,0.12549,202.89,202.88,11.67113233]
[1739206098819,0.12549,202.89,202.87,11.67113233]
[1739206099622,13.44184853,202.9,202.82,11.67113233]
[1739206099623,13.41184853,202.86,202.82,11.67113233]
[1739206099918,0.37647,202.88,202.84,11.67113233]
[1739206100121,13.41184853,202.89,202.86,11.67113233]
[1739206100294,0.03,202.9,202.81,1.6119]
[1739206100295,0.03,202.9,202.88,11.67113233]
[1739206100999,0.03,202.9,202.89,11.67113233]
[1739206107611,0.03,202.9,202.89,7.46640208]
[1739206109424,0.03,202.9,202.89,9.81742101]
[1739206110612,0.03,202.91,202.89,16.48382101]
[1739206111139,0.03,202.98,202.97,7.46640208]
[1739206112435,0.03,202.98,202.95,7.46640208]
[1739206112725,0.03,202.98,202.94,7.46640208]
[1739206113510,13.44184853,202.98,202.94,7.46640208]
[1739206113715,0.25098,202.97,202.94,7.46640208]
[1739206114927,0.12549,202.96,202.94,7.46640208]
[1739206115135,13.53733853,202.96,202.93,7.46640208]
[1739206116932,0.12549,202.94,202.92,7.46640208]
[1739206117135,0.12549,202.94,202.91,7.46640208]
[1739206120122,0.12549,202.94,202.89,7.46640208]
[1739206120416,0.12549,202.92,202.89,7.46640208]
[1739206121039,0.12549,202.93,202.89,7.46640208]
[1739206122423,0.25098,202.96,202.89,7.46640208]
[1739206122636,0.25098,202.94,202.89,7.46640208]
[1739206122835,0.25098,202.94,202.91,7.46640208]
[1739206123135,0.12549,202.95,202.91,7.46640208]
[1739206123525,0.25098,202.97,202.93,7.46640208]
[1739206124437,0.25098,202.97,202.85,0.73922804]
[1739206124438,13.44184853,202.98,202.96,7.46640208]
[1739206124641,13.56733853,202.98,202.97,7.46640208]
[1739206124840,0.15549,202.98,202.97,7.46640208]
[1739206125440,0.37647,202.97,202.95,7.46640208]
[1739206125646,13.53733853,202.96,202.95,7.46640208]
[1739206125848,13.53733853,202.96,202.94,7.46640208]
[1739206126530,0.03,202.98,202.95,7.46640208]
[1739206126750,0.03,202.98,202.97,7.46640208]
[1739206126940,0.03,202.98,202.95,7.46640208]
[1739206128126,13.53733853,202.96,202.95,7.46640208]
[1739206132227,0.03,202.98,202.95,7.46640208]
[1739206139563,0.03,202.98,202.97,7.46640208]
[1739206143271,0.03,203.11,203.0,20.0]
[1739206143454,0.03,203.11,203.06,7.46640208]
[1739206143641,0.12549,203.09,203.06,7.46640208]
[1739206146969,0.03,203.11,203.06,7.46640208]
[1739206147145,0.03,203.11,203.06,37.3320104]
[1739206148165,0.03,203.11,203.06,7.46640208]
[1739206148765,0.03,203.11,203.06,37.3320104]
[1739206150265,0.03,203.11,203.1,21.6091]
[1739206150471,0.03,203.11,203.1,29.81379495]
[1739206151764,0.03,203.18,203.1,74.71379495]
[1739206151949,0.03,203.18,203.16,7.46640208]
[1739206155054,0.03,203.23,203.16,7.46640208]
[1739206155055,0.03,203.23,203.22,1.0]
[1739206155367,0.03,203.28,203.25,21.5878]
[1739206155557,0.03,203.28,203.27,7.46640208]
[1739206157771,0.03,203.28,203.27,11.61966858]
[1739206158070,0.03,203.28,203.27,13.59007358]
[1739206160884,0.03,203.29,203.27,25.94744153]
[1739206161059,88.0154,203.44,203.27,25.94744153]
[1739206161060,6.5135,203.52,203.36,1.0]
[1739206161262,6.5135,203.52,203.46,11.61966858]
[1739206161563,23.04666858,203.52,203.44,11.61966858]
[1739206161765,13.91380853,203.49,203.42,11.61966858]
[1739206162169,18.13316858,203.52,203.44,11.61966858]
[1739206162764,13.91380853,203.51,203.44,11.61966858]
[1739206162958,13.91380853,203.51,203.35,0.73722929]
[1739206162959,13.91380853,203.49,203.42,11.61966858]
[1739206163164,13.91380853,203.47,203.4,11.61966858]
[1739206163563,13.91380853,203.47,203.42,11.61966858]
[1739206164258,13.91380853,203.47,203.44,11.61966858]
[1739206165086,0.25098,203.47,203.44,11.61966858]
[1739206165957,0.25098,203.5,203.44,11.61966858]
[1739206166262,0.12549,203.5,203.48,11.61966858]
[1739206166463,13.53733853,203.49,203.48,11.61966858]
[1739206166966,13.41184853,203.49,203.48,11.61966858]
[1739206167272,10.9732,203.57,203.48,11.61966858]
[1739206167457,6.0608,203.57,203.51,11.61966858]
[1739206167888,13.41184853,203.56,203.53,11.61966858]
[1739206168055,0.12549,203.59,203.53,11.61966858]
[1739206168259,17.68046858,203.62,203.55,11.61966858]
[1739206168260,6.0608,203.62,203.55,11.61966858]
[1739206168561,0.12549,203.61,203.55,11.61966858]
[1739206168976,13.66282853,203.61,203.55,11.61966858]
[1739206169181,0.25098,203.56,203.49,11.61966858]
[1739206169562,0.12549,203.54,203.49,11.61966858]
[1739206169754,13.53733853,203.55,203.49,11.61966858]
[1739206170389,0.12549,203.54,203.49,11.61966858]
[1739206170884,0.12549,203.53,203.47,11.61966858]
[1739206172385,13.66282853,203.54,203.47,11.61966858]
[1739206172682,13.66282853,203.54,203.49,11.61966858]
[1739206172881,0.12549,203.54,203.49,11.61966858]
[1739206173379,0.37647,203.54,203.49,11.61966858]
[1739206174979,0.37647,203.55,203.49,11.61966858]
[1739206175568,13.41184853,203.54,203.49,11.61966858]
[1739206176187,13.41184853,203.54,203.51,11.61966858]
[1739206176968,13.44184853,203.54,203.51,11.61966858]
[1739206177485,0.12549,203.53,203.49,11.61966858]
[1739206178080,11.87064858,203.53,203.45,11.61966858]
[1739206178290,0.12549,203.51,203.45,11.61966858]
[1739206178863,0.25098,203.5,203.45,11.61966858]
[1739206179059,13.41184853,203.49,203.45,11.61966858]
[1739206179481,0.25098,203.48,203.45,11.61966858]
[1739206180483,0.25098,203.46,203.43,11.61966858]
[1739206181297,13.41184853,203.45,203.43,11.61966858]
[1739206181496,11.61966858,203.51,203.43,11.61966858]
[1739206181695,16.53336858,203.51,203.44,11.61966858]
[1739206181986,0.03,203.54,203.5,11.61966858]
[1739206182193,0.03,203.54,203.53,11.61966858]
[1739206183974,0.03,203.54,203.51,11.61966858]
[1739206185977,0.03,203.54,203.53,11.61966858]
[1739206190688,0.03,203.54,203.51,11.61966858]
[1739206194590,0.03,203.54,203.53,11.61966858]
[1739206200474,0.03,203.54,203.52,11.61966858]
[1739206201494,0.03,203.54,203.53,11.61966858]
[1739206202576,0.03,203.54,203.53,13.35640408]
[1739206203699,0.03,203.54,203.53,12.35640408]
[1739206203887,0.03,203.54,203.53,11.61966858]
[1739206211191,0.25098,203.53,203.51,11.61966858]
[1739206212982,0.03,203.54,203.51,11.61966858]
[1739206213178,0.28098,203.54,203.53,11.61966858]
[1739206213404,0.28098,203.54,203.51,11.61966858]
[1739206213706,13.66282853,203.52,203.51,11.61966858]
[1739206214582,13.66282853,203.52,203.49,11.61966858]
[1739206214908,0.12549,203.51,203.49,11.61966858]
[1739206215209,0.12549,203.51,203.47,11.61966858]
[1739206216400,0.12549,203.51,203.49,11.61966858]
[1739206217714,0.12549,203.51,203.48,7.42444957]
[1739206218206,13.53733853,203.52,203.48,7.42444957]
[1739206218801,13.53733853,203.52,203.5,7.42444957]
[1739206218999,0.03,203.54,203.5,7.42444957]
[1739206219303,0.03,203.54,203.52,7.42444957]
[1739206221403,0.03,203.54,203.53,0.73674692]
[1739206221600,0.03,203.54,203.53,31.59044274]
[1739206222005,0.03,203.54,203.53,32.32718321]
[1739206222894,0.03,203.54,203.53,33.32718321]
[1739206223291,0.03,203.68,203.55,1.0]
[1739206223498,0.03,203.68,203.62,11.59044274]
[1739206224207,0.15549,203.68,203.62,11.59044274]
[1739206224417,13.56733853,203.68,203.62,11.59044274]
[1739206225222,0.25098,203.67,203.62,11.59044274]
[1739206225720,25.37876127,203.67,203.58,11.59044274]
[1739206225919,0.12549,203.66,203.58,11.59044274]
[1739206226316,0.12549,203.66,203.6,11.59044274]
[1739206226500,0.25098,203.67,203.6,11.59044274]
[1739206226702,0.12549,203.66,203.6,11.59044274]
[1739206226904,0.12549,203.66,203.62,11.59044274]
[1739206228225,13.44184853,203.68,203.62,11.59044274]
[1739206228226,0.03,203.68,203.62,11.59044274]
[1739206228721,11.96691274,203.67,203.6,11.59044274]
[1739206228933,11.96691274,203.67,203.58,11.59044274]
[1739206229219,0.25098,203.65,203.58,11.59044274]
[1739206230120,11.84142274,203.65,203.58,11.59044274]
[1739206230634,13.53733853,203.62,203.56,11.59044274]
[1739206230825,0.12549,203.61,203.56,11.59044274]
[1739206231731,0.12549,203.59,203.52,11.59044274]
[1739206231900,11.71593274,203.59,203.52,11.59044274]
[1739206232323,0.12549,203.57,203.52,11.59044274]
[1739206232523,0.12549,203.57,203.5,11.59044274]
[1739206232727,0.12549,203.55,203.5,11.59044274]
[1739206234107,13.66282853,203.54,203.5,11.59044274]
[1739206236722,0.12549,203.54,203.5,11.59044274]
[1739206237628,13.41184853,203.58,203.52,11.59044274]
[1739206237831,0.12549,203.55,203.52,11.59044274]
[1739206238040,11.59044274,203.61,203.52,11.59044274]
[1739206238337,13.78831853,203.6,203.52,11.59044274]
[1739206238838,13.78831853,203.6,203.54,11.59044274]
[1739206239525,18.04344274,203.65,203.56,11.59044274]
[1739206239711,18.04344274,203.65,203.58,11.59044274]
[1739206239911,13.78831853,203.64,203.58,11.59044274]
[1739206240140,13.78831853,203.64,203.56,11.59044274]
[1739206243450,13.66282853,203.62,203.56,11.59044274]
[1739206245052,13.53733853,203.62,203.56,11.59044274]
[1739206245955,13.53733853,203.62,203.51,1.73675033]
[1739206245956,6.453,203.65,203.6,11.59044274]
[1739206246553,13.66282853,203.64,203.6,11.59044274]
[1739206246752,13.66282853,203.64,203.58,11.59044274]
[1739206248748,13.53733853,203.64,203.58,11.59044274]
[1739206249543,6.453,203.65,203.58,11.59044274]
[1739206249729,6.453,203.65,203.6,11.59044274]
[1739206250627,13.78831853,203.66,203.6,11.59044274]
[1739206252337,0.03,203.68,203.62,11.59044274]
[1739206254431,0.03,203.68,203.64,11.59044274]
[1739206255739,0.03,203.68,203.62,7.414092]
[1739206255932,0.37647,203.67,203.62,7.414092]
[1739206257356,0.28098,203.68,203.62,7.414092]
[1739206257841,0.37647,203.67,203.62,7.414092]
[1739206259048,0.40647,203.67,203.62,7.414092]
[1739206259855,0.03,203.67,203.64,7.414092]
[1739206260541,0.15549,203.67,203.64,7.414092]
[1739206260736,0.15549,203.67,203.62,7.414092]
[1739206263360,13.78831853,203.66,203.62,7.414092]
[1739206264838,0.03,203.67,203.62,7.414092]
[1739206265038,0.15549,203.67,203.62,7.414092]
[1739206266741,0.03,203.67,203.62,7.414092]
[1739206267661,0.25098,203.66,203.6,7.414092]
[1739206267861,0.03,203.67,203.6,7.414092]
[1739206268069,0.12549,203.66,203.6,7.414092]
[1739206273571,0.12549,203.66,203.58,7.414092]
[1739206273572,21.07692053,203.66,203.58,7.414092]
[1739206274165,0.25098,203.66,203.58,7.414092]
[1739206274652,0.12549,203.65,203.58,7.414092]
[1739206274858,0.12549,203.63,203.58,7.414092]
[1739206275255,13.53733853,203.62,203.58,7.414092]
[1739206275573,0.12549,203.61,203.58,7.414092]
[1739206275873,13.53733853,203.61,203.58,7.414092]
[1739206276195,0.12549,203.63,203.58,7.414092]
[1739206277293,0.25098,203.61,203.54,11.07588657]
[1739206277486,13.66282853,203.61,203.54,11.07588657]
[1739206277991,13.66282853,203.61,203.56,7.414092]
[1739206280379,13.66282853,203.61,203.54,3.66179457]
[1739206280380,13.66282853,203.61,203.54,11.07588657]
[1739206280981,0.12549,203.6,203.54,11.07588657]
[1739206281281,0.25098,203.61,203.56,7.414092]
[1739206281668,0.12549,203.61,203.58,7.414092]
[1739206281867,7.414092,203.66,203.58,7.414092]
[1739206282065,13.78831853,203.65,203.58,7.414092]
[1739206291082,13.78831853,203.65,203.58,7.414092]
[1739206294592,13.81831853,203.65,203.58,7.414092]
[1739206295992,13.81831853,203.65,203.6,7.414092]
[1739206299596,13.81831853,203.65,203.54,3.66179457]
[1739206299597,0.25098,203.58,203.54,3.66179457]
[1739206300187,6.6584,203.61,203.56,7.414092]
[1739206300797,13.66282853,203.6,203.54,11.07588657]
[1739206301203,13.66282853,203.6,203.56,7.414092]
[1739206303199,13.66282853,203.6,203.58,7.414092]
[1739206303200,0.12549,203.6,203.58,7.414092]
[1739206303899,0.12549,203.6,203.56,7.414092]
[1739206305177,0.12549,203.6,203.54,3.66179457]
[1739206305398,0.12549,203.64,203.58,7.414092]
[1739206305784,13.66282853,203.64,203.58,7.414092]
[1739206306502,0.25098,203.64,203.6,7.414092]
[1739206306698,0.03,203.65,203.62,7.414092]
[1739206306887,0.03,203.65,203.64,7.414092]
[1739206309219,0.03,203.65,203.64,8.15053232]
[1739206309386,0.03,203.65,203.64,7.414092]
[1739206309585,0.03,203.65,203.64,8.15042949]
[1739206311191,0.03,203.67,203.66,20.0]
[1739206311392,0.03,203.67,203.66,28.15029138]
[1739206312908,0.03,203.75,203.67,1.0]
[1739206313116,0.03,203.75,203.74,7.414092]
[1739206314208,0.03,203.75,203.74,8.15012722]
[1739206314788,0.03,203.75,203.74,7.414092]
[1739206316395,0.03,203.75,203.74,8.15013323]
[1739206317826,0.03,203.75,203.74,7.414092]
[1739206320008,0.03,203.75,203.74,8.15002156]
[1739206320214,0.03,203.75,203.74,7.414092]
[1739206320921,0.03,203.75,203.72,7.414092]
[1739206321096,0.03,203.75,203.74,20.0]
[1739206321737,0.03,203.75,203.71,7.414092]
[1739206321909,0.03,203.75,203.7,7.414092]
[1739206322221,0.12549,203.74,203.7,7.414092]
[1739206322420,0.25098,203.73,203.68,7.414092]
[1739206322607,13.66282853,203.73,203.66,7.414092]
[1739206323003,0.25098,203.73,203.69,20.0]
[1739206323442,7.665072,203.73,203.65,7.414092]
[1739206323717,0.12549,203.71,203.66,7.414092]
[1739206324619,0.12549,203.72,203.66,7.414092]
[1739206324919,7.539582,203.72,203.65,7.414092]
[1739206325120,7.539582,203.72,203.61,1.5391]
[1739206325121,0.12549,203.69,203.63,7.414092]
[1739206325805,0.12549,203.68,203.63,7.414092]
[1739206326519,0.12549,203.7,203.63,7.414092]
[1739206327727,13.53733853,203.71,203.65,7.414092]
[1739206328325,0.25098,203.68,203.61,7.414092]
[1739206328501,13.53733853,203.66,203.58,7.414092]
[1739206328704,0.12549,203.64,203.58,7.414092]
[1739206329237,13.539892,203.69,203.6,7.414092]
[1739206329405,13.539892,203.69,203.62,7.414092]
[1739206329720,0.25098,203.66,203.6,7.414092]
[1739206329918,0.25098,203.66,203.58,7.414092]
[1739206330401,0.25098,203.66,203.6,7.414092]
[1739206330600,13.78831853,203.66,203.58,7.414092]
[1739206331116,0.12549,203.65,203.58,7.414092]
[1739206331625,0.25098,203.66,203.6,7.414092]
[1739206331939,0.25098,203.66,203.61,7.414092]
[1739206332128,0.12549,203.65,203.61,7.477092]
[1739206332333,0.12549,203.65,203.61,0.063]
[1739206333922,13.53733853,203.63,203.61,0.063]
[1739206334135,21.07692053,203.62,203.61,0.063]
[1739206335334,13.66282853,203.62,203.61,0.063]
[1739206336827,7.414092,203.67,203.61,0.063]
[1739206337135,13.66282853,203.66,203.61,0.063]
[1739206337608,0.12549,203.65,203.61,0.063]
[1739206337808,13.66282853,203.66,203.61,0.063]
[1739206338044,0.12549,203.65,203.61,0.063]
[1739206341643,13.66282853,203.63,203.61,0.063]
[1739206341941,4.91,203.67,203.61,0.063]
[1739206341942,11.83750983,203.62,203.61,0.063]
[1739206343346,0.25098,203.62,203.61,0.063]
[1739206345041,13.78831853,203.62,203.61,0.063]
[1739206347023,11.58652983,203.66,203.61,0.063]
[1739206347227,11.58652983,203.68,203.61,0.063]
[1739206347645,13.66282853,203.67,203.61,0.063]
[1739206348561,13.66282853,203.64,203.61,0.063]
[1739206351131,0.25098,203.63,203.61,0.063]
[1739206351548,0.12549,203.62,203.61,0.063]
[1739206355343,25.24935836,203.62,203.61,0.063]
[1739206356252,30.16045836,203.62,203.61,0.063]
[1739206356451,25.24935836,203.62,203.61,0.063]
[1739206357855,0.25098,203.62,203.61,0.063]
[1739206359045,13.78831853,203.62,203.61,0.063]
[1739206449439,18.69941853,203.62,203.61,0.063]
[1739206449816,13.78831853,203.62,203.61,0.063]
[1739206458447,21.20677693,203.62,203.61,0.063]
[1739206459562,26.11787693,203.62,203.61,0.063]
[1739206461831,27.11787693,203.62,203.61,0.063]
[1739206463955,0.25098,203.56,203.54,3.66179457]
[1739206464144,1.0,203.57,203.54,3.66179457]
[1739206464145,22.08128693,203.55,203.54,0.063]